fUSD/lending_fUSD_20241112
["ID","MTS","AMOUNT","RATE_DAILY","PERIOD"]
[342081154,1731417046223,-10268.44890519,0.00013,2]
[342081155,1731417046237,-3722.1004,0.00013,2]
[342081156,1731417046250,-12975.0,0.00013,2]
[342081158,1731417046922,-533.83619612,0.00013,2]
[342081159,1731417046949,-71684.5457182,0.00013,2]
[342081160,1731417062991,203.0,0.00010959,2]
[342081161,1731417129153,210.72,0.00026986,120]
[342081162,1731417221774,150.0,0.00012055,2]
[342081163,1731417267866,200.0,0.00027,60]
[342081164,1731417469239,1111.94,0.00010428,2]
[342081165,1731417720790,250.0,0.00012287,2]
[342081166,1731417722594,9960.05,0.00012287,2]
[342081168,1731417898584,264.96,0.00012168,2]
[342081169,1731417949555,150.0,0.00012164,2]
[342081170,1731418022360,150.0,0.00012177,2]
[342081171,1731418065648,1045.97,0.0001216,2]
[342081172,1731418111750,164.15,0.00012147,2]
[342081179,1731418177925,1056.34,0.00010226,2]
[342081191,1731418201435,250.0,0.00012102,2]
[342081192,1731418222445,167.35,0.00012104,2]
[342081200,1731418232228,-800.0,0.00012324,2]
[342081201,1731418232238,-1000.0,0.00012342,2]
[342081202,1731418232248,-241.01,0.00012367,2]
[342081203,1731418232257,-166.2,0.00012418,2]
[342081204,1731418232266,-1056.34,0.0001249,2]
[342081205,1731418232275,-500.0,0.000126,2]
[342081206,1731418232284,-300.0,0.00012679,2]
[342081207,1731418232294,-2590.41342827,0.0001268,2]
[342081208,1731418232305,-13720.39928974,0.0001268,2]
[342081211,1731418232999,-3101.62944983,0.0001268,2]
[342081212,1731418233026,-6009.40301435,0.0001268,2]
[342081213,1731418233095,-1937.74406245,0.0001268,2]
[342081214,1731418233105,-150.0,0.00012755,2]
[342081215,1731418233116,-577.510323,0.00012756,2]
[342081216,1731418233129,-215.49,0.00012756,2]
[342081217,1731418233139,-9999.99,0.00012756,2]
[342081218,1731418233149,-854.7,0.0001277,2]
[342081219,1731418233163,-263.6214,0.0001277,2]
[342081220,1731418233173,-150.99,0.0001277,2]
[342081221,1731418233182,-264.96,0.00012776,2]
[342081222,1731418233193,-2134.64307896,0.000128,2]
[342081223,1731418233203,-4560.0,0.0001287,2]
[342081224,1731418233212,-426.19393351,0.0001287,2]
[342081225,1731418233223,-200.0,0.000129,2]
[342081226,1731418233233,-2172.8739652,0.000129,2]
[342081227,1731418233244,-150.0,0.000129,2]
[342081228,1731418233254,-698.42,0.000129,2]
[342081229,1731418233264,-433.11,0.000129,2]
[342081230,1731418233273,-1000.0,0.000129,2]
[342081231,1731418233283,-723.82,0.000129,2]
[342081232,1731418233293,-433.11,0.000129,2]
[342081233,1731418233303,-300.0,0.000129,2]
[342081234,1731418233313,-5000.0,0.000129,2]
[342081235,1731418233323,-433.11,0.000129,2]
[342081236,1731418233333,-335.9469,0.000129,2]
[342081237,1731418233343,-1023.54513632,0.000129,2]
[342081238,1731418233353,-2500.0,0.000129,2]
[342081239,1731418233362,-7575.50281507,0.000129,2]
[342081240,1731418233375,-846.2824,0.000129,2]
[342081241,1731418233384,-151.0,0.0001291,2]
[342081242,1731418233394,-460.206,0.0001291,2]
[342081243,1731418233404,-563.0,0.0001291,2]
[342081244,1731418233414,-150.0,0.0001291,2]
[342081245,1731418233424,-502.06618345,0.00012973,2]
[342081246,1731418233434,-500.0,0.00012973,2]
[342081247,1731418233444,-2566.0199595,0.0001299,2]
[342081248,1731418233453,-785.2309081,0.0001299,2]
[342081249,1731418233463,-976.54,0.00012991,2]
[342081250,1731418233473,-176.10468371,0.00012991,2]
[342081251,1731418233483,-150.6686532,0.00012999,2]
[342081252,1731418233492,-1677.37339294,0.00012999,2]
[342081253,1731418233502,-410.64008258,0.00012999,2]
[342081254,1731418233511,-300.0,0.00012999,2]
[342081255,1731418233520,-250.0274167,0.00013,2]
[342081256,1731418233529,-1991.0,0.00013,2]
[342081257,1731418233539,-559.0,0.00013,2]
[342081258,1731418233548,-814.0,0.00013,2]
[342081259,1731418233558,-3245.628,0.00013,2]
[342081260,1731418233568,-920.0,0.00013,2]
[342081261,1731418233578,-1259.0,0.00013,2]
[342081262,1731418233587,-1548.66036086,0.00013,2]
[342081263,1731418233616,-1938.33963914,0.00013,2]
[342081264,1731418233632,-1091.0,0.00013,2]
[342081265,1731418233641,-6930.71612026,0.00013,2]
[342081266,1731418238187,-8636.6,0.00013,2]
[342081267,1731418238264,-8377.93251642,0.00013,2]
[342081268,1731418238406,-4353.58302308,0.00013,2]
[342081269,1731418238418,-9408.29860533,0.00013,2]
[342081270,1731418238429,-3630.29183471,0.00013,2]
[342081271,1731418238440,-3002.93190294,0.00013,2]
[342081272,1731418238451,-2079.27900819,0.00013,2]
[342081273,1731418238515,-36995.75753188,0.00013,2]
[342081274,1731418238527,-1850.0,0.00013,2]
[342081280,1731418240113,-488.33505874,0.00013,2]
[342081281,1731418240185,-1695.87908782,0.00013,2]
[342081282,1731418240332,-2062.99696318,0.00013,2]
[342081284,1731418240616,-1094.937,0.0001291,2]
[342081285,1731418240629,-54.63300001,0.00013,2]
[342081286,1731418240639,-3874.648873,0.00013,2]
[342081287,1731418240650,-626.08,0.00013,2]
[342081294,1731418243762,-2785.28755,0.00013,2]
[342081295,1731418243774,-1043.2000003,0.00013,2]
[342081296,1731418243785,-3393452.37073185,0.00013,2]
[342081297,1731418243797,-2172.88573781,0.00013,2]
[342081298,1731418243809,-2757.35631423,0.00013,2]
[342081299,1731418243820,-11366.1445288,0.00013,2]
[342081300,1731418243832,-446.1148993,0.00013,2]
[342081301,1731418243844,-5210.39337099,0.00013,2]
[342081302,1731418243856,-4130.58693146,0.00013,2]
[342081303,1731418243871,-954.69223703,0.00013,2]
[342081304,1731418243885,-2535.3446041,0.00013,2]
[342081305,1731418243897,-2511.56365129,0.00013,2]
[342081306,1731418243935,-131392.20399302,0.00013,2]
[342081307,1731418243959,-458.97099636,0.00013,2]
[342081308,1731418243971,-3444.52,0.00013,2]
[342081315,1731418246175,-867.075,0.000129,2]
[342081316,1731418246251,-32.07318152,0.000129,2]
[342081317,1731418246262,-1254.0,0.0001291,2]
[342081318,1731418246272,-2161.60681848,0.00013,2]
[342081319,1731418246333,-941.69917938,0.00013,2]
[342081320,1731418246346,-86200.0,0.00013,2]
[342081321,1731418246359,-566.45119642,0.00013,2]
[342081322,1731418246419,-6092.60049394,0.00013,2]
[342081323,1731418246435,-6557.55996358,0.00013,2]
[342081324,1731418246452,-406.65329926,0.00013,2]
[342081329,1731418367538,1033.72,0.00012147,2]
[342081331,1731418450642,1386.57,0.00012669,30]
[342081332,1731418513673,250.0,0.00012147,2]
[342081337,1731418603826,2000.0,0.00011567,2]
[342081338,1731418604431,983.98,0.00012147,2]
[342081339,1731418625277,222.66,0.0001157,2]
[342081340,1731418652418,150.0,0.00012055,2]
[342081345,1731418695511,549.65999583,0.00012278,2]
[342081346,1731418715771,293.09,0.00011645,2]
[342081347,1731418716225,293.09,0.00012228,2]
[342081348,1731418789608,2646.0,0.000123,2]
[342081349,1731418800248,150.0,0.00011621,2]
[342081350,1731418881524,250.0,0.00011626,2]
[342081351,1731418921685,950.7,9.708e-05,2]
[342081352,1731418921891,950.7,0.00011972,2]
[342081354,1731419107400,-156.77,0.00012329,2]
[342081355,1731419107422,-1451.27,0.0001237,2]
[342081356,1731419107444,-157.37,0.00012378,2]
[342081357,1731419107466,-157.37,0.00012382,2]
[342081358,1731419107488,-157.37,0.00012385,2]
[342081359,1731419107509,-157.37,0.00012388,2]
[342081360,1731419107536,-157.37,0.00012391,2]
[342081361,1731419107558,-157.37,0.00012395,2]
[342081362,1731419107580,-157.37,0.00012398,2]
[342081363,1731419107604,-157.37,0.00012401,2]
[342081364,1731419107625,-300.0,0.00012402,2]
[342081365,1731419107647,-12623.40088548,0.00012403,2]
[342081366,1731419107667,-150.0,0.00012403,2]
[342081367,1731419107690,-157.37,0.00012404,2]
[342081368,1731419107713,-373.69,0.00012404,2]
[342081369,1731419107734,-999.99,0.00012404,2]
[342081370,1731419107755,-30259.04,0.00012404,2]
[342081371,1731419107780,-1103.27,0.00012404,2]
[342081372,1731419107802,-150.99,0.00012404,2]
[342081373,1731419107823,-7724.31,0.00012404,2]
[342081374,1731419107844,-157.37,0.00012408,2]
[342081375,1731419107866,-157.37,0.00012411,2]
[342081376,1731419107887,-157.37,0.00012414,2]
[342081377,1731419107908,-157.37,0.00012418,2]
[342081378,1731419107928,-157.37,0.00012421,2]
[342081379,1731419107949,-157.37,0.00012424,2]
[342081380,1731419107970,-157.37,0.00012427,2]
[342081381,1731419107992,-157.37,0.00012431,2]
[342081382,1731419108018,-157.37,0.00012434,2]
[342081383,1731419108041,-157.37,0.00012437,2]
[342081384,1731419108063,-157.37,0.0001244,2]
[342081385,1731419108083,-200.0,0.0001245,2]
[342081386,1731419108108,-23900.0,0.0001245,2]
[342081387,1731419108128,-14469.0,0.00012487,2]
[342081388,1731419108149,-1000.0,0.00012536,2]
[342081389,1731419108170,-2751.0,0.00012669,2]
[342081390,1731419108192,-2017.9943,0.0001267,2]
[342081391,1731419108212,-426.36555989,0.00012717,2]
[342081392,1731419108235,-150.0,0.00012744,2]
[342081393,1731419108258,-1223.34312,0.0001276,2]
[342081394,1731419108283,-588.4989,0.0001277,2]
[342081395,1731419108308,-5994.3158,0.0001277,2]
[342081396,1731419108331,-1000.0,0.0001277,2]
[342081397,1731419108356,-150.0,0.00012791,2]
[342081398,1731419108379,-30615.33322427,0.000128,2]
[342081399,1731419108403,-1312.6832,0.000128,2]
[342081400,1731419108428,-160.0,0.00012804,2]
[342081401,1731419108451,-293.09,0.0001281,2]
[342081402,1731419108474,-150.0,0.00012828,2]
[342081403,1731419108497,-150.0,0.00012841,2]
[342081404,1731419108522,-155.94,0.00012843,2]
[342081405,1731419108548,-150.0,0.00012847,2]
[342081406,1731419108570,-150.0,0.00012851,2]
[342081407,1731419108592,-72636.85983264,0.0001287,2]
[342081408,1731419108613,-3000.0,0.0001287,2]
[342081409,1731419108634,-77317.1876,0.000129,2]
[342081410,1731419108656,-5000.0,0.000129,2]
[342081411,1731419108678,-9085.2683,0.000129,2]
[342081412,1731419108701,-1102.646,0.000129,2]
[342081413,1731419108724,-150.0,0.00012947,2]
[342081414,1731419108748,-150.0,0.00012977,2]
[342081415,1731419108776,-150.0,0.00012989,2]
[342081416,1731419108798,-82119.6528867,0.0001299,2]
[342081417,1731419108820,-2840.0503837,0.0001299,2]
[342081418,1731419108842,-869.0872935,0.0001299,2]
[342081419,1731419108863,-150.01,0.00012999,2]
[342081420,1731419108886,-252.59634304,0.00012999,2]
[342081421,1731419108908,-306.91032784,0.00012999,2]
[342081422,1731419108931,-808906.03604294,0.00013,2]
[342081423,1731419124493,772.91,0.00010959,2]
[342081424,1731419159538,253.02,0.00011641,2]
[342081425,1731419193753,1000.0,0.00011819,2]
[342081426,1731419197502,250.0,0.00011819,2]
[342081427,1731419320960,151.33,8.219e-05,2]
[342081434,1731419351263,150.0,0.00012055,2]
[342081438,1731419388801,491.99,0.00011808,2]
[342081440,1731419398207,154.25,0.00011808,2]
[342081454,1731419432380,-154.25,0.00012398,2]
[342081455,1731419432390,-150.0,0.0001251,2]
[342081456,1731419432399,-150.0,0.00012515,2]
[342081457,1731419432409,-150.0,0.00012516,2]
[342081458,1731419432419,-300.0,0.00012531,2]
[342081459,1731419432428,-150.0,0.00012544,2]
[342081460,1731419432437,-150.0,0.00012546,2]
[342081461,1731419432450,-150.0,0.00012561,2]
[342081462,1731419432460,-150.0,0.00012567,2]
[342081463,1731419432469,-150.0,0.0001259,2]
[342081464,1731419432479,-999.99,0.0001259,2]
[342081465,1731419432489,-150.0,0.000126,2]
[342081466,1731419432498,-409.5,0.000126,2]
[342081467,1731419432508,-150.0,0.00012624,2]
[342081468,1731419432521,-150.0,0.00012624,2]
[342081469,1731419432531,-1051.44563997,0.00012642,2]
[342081470,1731419432541,-3578.9465,0.0001267,2]
[342081471,1731419432550,-150.0,0.00012681,2]
[342081472,1731419432559,-150.0,0.00012699,2]
[342081473,1731419432569,-150.0,0.00012705,2]
[342081474,1731419432579,-150.0,0.00012711,2]
[342081475,1731419432589,-150.0,0.00012724,2]
[342081476,1731419432599,-150.0,0.00012736,2]
[342081477,1731419432609,-300.0,0.00012739,2]
[342081478,1731419432618,-1096.69412714,0.0001274,2]
[342081479,1731419432628,-1500.0,0.00012748,2]
[342081480,1731419432637,-825.45810202,0.0001276,2]
[342081481,1731419432647,-150.0,0.00012767,2]
[342081482,1731419432657,-150.0,0.00012769,2]
[342081483,1731419432667,-150.0,0.0001277,2]
[342081484,1731419432676,-3200.174,0.0001277,2]
[342081485,1731419432686,-333.4091,0.0001277,2]
[342081486,1731419432695,-5000.0,0.000129,2]
[342081487,1731419432705,-1000.0,0.000129,2]
[342081488,1731419432714,-1000.0,0.000129,2]
[342081489,1731419432723,-12678.59997307,0.000129,2]
[342081490,1731419432741,-6996.34567425,0.000129,2]
[342081491,1731419432752,-1039.1271253,0.000129,2]
[342081492,1731419433543,-0.02203809,0.000129,2]
[342081493,1731419435740,-4670.31519146,0.000129,2]
[342081494,1731419435751,-1000.0,0.000129,2]
[342081495,1731419435760,-170.00403979,0.000129,2]
[342081496,1731419435769,-1287.9231704,0.00012925,2]
[342081498,1731419435786,-504.35204938,0.00012973,2]
[342081500,1731419435797,-300.88127697,0.00012973,2]
[342081510,1731419438348,-202.14935715,0.00012973,2]
[342081512,1731419438358,-500.0,0.00012973,2]
[342081513,1731419438367,-347.35582032,0.00012973,2]
[342081514,1731419438377,-1005.3006712,0.00012988,2]
[342081515,1731419438386,-154.25,0.00012988,2]
[342081516,1731419438396,-375.8981042,0.0001299,2]
[342081517,1731419438405,-3285.1758137,0.0001299,2]
[342081518,1731419438414,-619.73517329,0.00012997,2]
[342081519,1731419438424,-252.59634304,0.00012999,2]
[342081520,1731419438435,-13164.937967,0.00013,2]
[342081521,1731419438516,-1578.6,0.00013,2]
[342081522,1731419438532,-856.32,0.00013,2]
[342081523,1731419438544,-8540.86431503,0.00013,2]
[342081524,1731419438555,-2716.66522628,0.00013,2]
[342081525,1731419438566,-575.501587,0.00013,2]
[342081526,1731419438578,-3799.03533993,0.00013,2]
[342081527,1731419438589,-9877.7986755,0.00013,2]
[342081528,1731419438600,-691.20323276,0.00013,2]
[342081529,1731419438653,-2354.87138112,0.00013,2]
[342081530,1731419438664,-1279.51824,0.00013,2]
[342081531,1731419438745,-3936.61582778,0.00013,2]
[342081673,1731419440304,-3221.10000002,0.00013,2]
[342081683,1731419440392,-1221.05499974,0.00013,2]
[342081686,1731419440414,-140524.97102585,0.00013,2]
[342081688,1731419440427,-285.47748993,0.00013,2]
[342081690,1731419440441,-1109.45062509,0.00013,2]
[342081693,1731419440459,-768.3,0.00013,2]
[342081695,1731419440471,-58630.34907302,0.00013,2]
[342081700,1731419440503,-1500.0,0.00012999,2]
[342081702,1731419440513,-18.5806454,0.00013,2]
[342081711,1731419440592,-5361.73425158,0.00013,2]
[342081728,1731419440745,-4907.19442826,0.00013,2]
[342081730,1731419440762,-258.0072495,0.00013,2]
[342081893,1731419443447,-321.38,0.00013,2]
[342081894,1731419443490,-31879.40353436,0.00013,2]
[342081895,1731419443666,-1708.00929837,0.00013,2]
[342081896,1731419443678,-882.66715,0.00013,2]
[342081897,1731419443691,-6834.0,0.00013,2]
[342081898,1731419443702,-454.23503158,0.00013,2]
[342081899,1731419443714,-36976.86092293,0.00013,2]
[342081900,1731419443740,-2431.06246597,0.00013,2]
[342081901,1731419443751,-9121.695444,0.00013,2]
[342081902,1731419443820,-3147.19224954,0.00013,2]
[342081903,1731419443832,-1151.09180308,0.00013,2]
[342081904,1731419443844,-1329828.50582062,0.00013,2]
[342081905,1731419443854,-24883.14176036,0.00013,2]
[342081906,1731419443863,-453.0,0.00013,2]
[342081907,1731419443872,-1254.0,0.00013,2]
[342081908,1731419443882,-295.671,0.00013,2]
[342081909,1731419443892,-559.0,0.00013,2]
[342081910,1731419443901,-1991.0,0.00013,2]
[342081911,1731419443910,-3744.0,0.00013,2]
[342081912,1731419443919,-1401.333,0.00013,2]
[342081913,1731419443929,-921.0,0.00013,2]
[342081915,1731419443939,-814.0,0.00013,2]
[342081917,1731419443948,-3487.0,0.00013,2]
[342081919,1731419443958,-13631.0,0.00013,2]
[342081921,1731419443967,-150.0,0.00013,2]
[342081924,1731419443976,-1159.0,0.00013,2]
[342081927,1731419443986,-1095.999,0.00013,2]
[342081929,1731419443995,-535858.70735593,0.00013,2]
[342082038,1731419446438,-346.11730796,0.00013,2]
[342082039,1731419446451,-6020.3768,0.00013,2]
[342082040,1731419446464,-85317.06,0.00013,2]
[342082041,1731419446478,-8570.55181263,0.00013,2]
[342082042,1731419446490,-16112.87999995,0.00013,2]
[342082043,1731419446502,-10535.6001,0.00013,2]
[342082044,1731419446616,-832.60806033,0.00013,2]
[342082045,1731419446630,-8678.02530585,0.00013,2]
[342082046,1731419446642,-34331.52701503,0.00013,2]
[342082047,1731419446655,-24546.92558629,0.00013,2]
[342082048,1731419446728,-8563.62707459,0.00013,2]
[342082049,1731419446741,-855.72155584,0.00013,2]
[342082051,1731419446767,-471.97502,0.00013,2]
[342082053,1731419446781,-2458.06362462,0.00013,2]
[342082055,1731419446845,-19945.84456534,0.00013,2]
[342082056,1731419446860,-256.1,0.00013,2]
[342082057,1731419446888,-1079.81916774,0.00013,2]
[342082058,1731419446900,-2602.14330272,0.00013,2]
[342082059,1731419446911,-85469.838062,0.00013,2]
[342082060,1731419446923,-69328.38700013,0.00013,2]
[342082063,1731419498262,160.081,0.00011,2]
[342082064,1731419501744,160.055,0.0001798,60]
[342082065,1731419502298,160.36,0.000187,30]
[342082066,1731419542258,153.48625181,0.00027,120]
[342082078,1731419782632,875.06,0.00010379,2]
[342082079,1731419834271,672.0,0.00012293,2]
[342082080,1731419898242,1000.0,0.00012242,2]
[342082081,1731420004688,250.0,0.00012278,2]
[342082083,1731420083709,152.35,0.00012095,2]
[342082084,1731420085382,1161.87,0.00012095,2]
[342082085,1731420085618,1161.87,0.00012098,2]
[342082086,1731420085812,1161.87,0.00012101,2]
[342082087,1731420086048,1161.87,0.00012104,2]
[342082088,1731420086259,1161.87,0.00012108,2]
[342082089,1731420086459,1161.87,0.00012111,2]
[342082090,1731420086662,1161.87,0.00012114,2]
[342082091,1731420086999,1161.87,0.00012117,2]
[342082092,1731420087200,1161.87,0.0001212,2]
[342082093,1731420087430,1161.87,0.00012123,2]
[342082094,1731420087723,1161.87,0.00012127,2]
[342082095,1731420087887,1161.87,0.0001213,2]
[342082096,1731420088133,1161.87,0.00012133,2]
[342082097,1731420088383,1161.87,0.00012136,2]
[342082098,1731420088588,1161.87,0.00012139,2]
[342082099,1731420089019,1161.87,0.00012143,2]
[342082100,1731420089127,1161.87,0.00012146,2]
[342082101,1731420089288,1161.87,0.00012149,2]
[342082102,1731420089510,1161.87,0.00012152,2]
[342082103,1731420089738,1161.87,0.00012155,2]
[342082105,1731420131156,245.99,0.00012033,2]
[342082106,1731420145638,150.0,0.00012055,2]
[342082107,1731420150668,5604.84,0.0001196,2]
[342082109,1731420288436,250.0,0.00011945,2]
[342082111,1731420380264,2662.39,0.00012047,2]
[342082112,1731420445904,-163.75,0.00012426,2]
[342082113,1731420445937,-182.83,0.00012507,2]
[342082114,1731420445970,-2066.0,0.00012604,2]
[342082115,1731420446006,-875.06,0.00012643,2]
[342082116,1731420446039,-1009.11852519,0.0001274,2]
[342082117,1731420446071,-1078.30041078,0.0001274,2]
[342082119,1731420509271,262.4,0.00012012,2]
[342082121,1731420530349,787.55,0.00010145,2]
[342082125,1731420611531,1000.0,0.00012224,2]
[342082130,1731420631625,-271.999985,0.00012409,2]
[342082131,1731420631639,-515.550015,0.00012409,2]
[342082132,1731420631648,-1090.62237259,0.0001274,2]
[342082133,1731420631657,-389.81341035,0.00012863,2]
[342082134,1731420631666,-257.0483,0.0001289,2]
[342082135,1731420631675,-206.08655186,0.0001289,2]
[342082136,1731420631685,-285.82211421,0.0001289,2]
[342082137,1731420631695,-9999.99,0.00012898,2]
[342082138,1731420631705,-2601.23,0.00012899,2]
[342082139,1731420631714,-1529.8,0.00012899,2]
[342082140,1731420631723,-150.99,0.00012899,2]
[342082141,1731420631733,-925.229,0.00012899,2]
[342082142,1731420631742,-150.0,0.00012899,2]
[342082143,1731420631752,-454.2621,0.000129,2]
[342082144,1731420631762,-1289.4802,0.000129,2]
[342082145,1731420631771,-9693.2568,0.000129,2]
[342082146,1731420631780,-745.0084,0.000129,2]
[342082147,1731420631791,-751.8985,0.000129,2]
[342082148,1731420631804,-289.77,0.000129,2]
[342082149,1731420631813,-152.35,0.00012901,2]
[342082150,1731420631823,-453.0,0.00012928,2]
[342082151,1731420631832,-349.807,0.00012928,2]
[342082152,1731420631842,-559.0,0.00012928,2]
[342082153,1731420631853,-202.311,0.00012928,2]
[342082154,1731420631862,-1259.0,0.00012928,2]
[342082155,1731420631878,-2888.037,0.00012928,2]
[342082156,1731420631887,-150.0,0.00012974,2]
[342082157,1731420631897,-224.402,0.00012974,2]
[342082158,1731420631907,-500.0,0.00012989,2]
[342082159,1731420631916,-174.68177084,0.00012989,2]
[342082160,1731420631926,-509.83499271,0.00012989,2]
[342082161,1731420631935,-500.0,0.00012989,2]
[342082162,1731420631944,-500.0,0.00012989,2]
[342082163,1731420631953,-500.0,0.00012989,2]
[342082164,1731420631963,-500.0,0.00012989,2]
[342082165,1731420631973,-500.0,0.00012989,2]
[342082166,1731420631983,-500.0,0.00012989,2]
[342082167,1731420631994,-500.0,0.00012989,2]
[342082168,1731420632004,-500.0,0.00012989,2]
[342082169,1731420632014,-500.0,0.00012989,2]
[342082170,1731420632023,-500.0,0.00012989,2]
[342082171,1731420632033,-500.0,0.00012989,2]
[342082172,1731420632042,-500.0,0.00012989,2]
[342082174,1731420632051,-500.0,0.00012989,2]
[342082176,1731420632060,-500.0,0.00012989,2]
[342082178,1731420632069,-811.06284395,0.00012989,2]
[342082180,1731420632078,-811.06284395,0.00012989,2]
[342082182,1731420632087,-811.06284395,0.00012989,2]
[342082184,1731420632096,-811.06284395,0.00012989,2]
[342082186,1731420632107,-811.06284395,0.00012989,2]
[342082188,1731420632117,-811.06284395,0.00012989,2]
[342082189,1731420632131,-811.06284395,0.00012989,2]
[342082191,1731420632140,-811.06284395,0.00012989,2]
[342082193,1731420632149,-811.06284395,0.00012989,2]
[342082194,1731420632159,-811.06284395,0.00012989,2]
[342082195,1731420632169,-811.06284395,0.00012989,2]
[342082196,1731420632179,-260.9607,0.00012989,2]
[342082197,1731420632188,-376924.81638058,0.0001299,2]
[342082198,1731420632201,-63373.15774846,0.0001299,2]
[342082199,1731420632212,-86316.31909778,0.0001299,2]
[342082200,1731420632223,-5180.51305017,0.0001299,2]
[342082201,1731420632234,-1037.8882706,0.0001299,2]
[342082202,1731420632245,-1494.74196375,0.0001299,2]
[342082203,1731420632257,-104861.66477,0.0001299,2]
[342082204,1731420632320,-654.688113,0.0001299,2]
[342082205,1731420632358,-8003.54530582,0.0001299,2]
[342082206,1731420632377,-429197.99999986,0.0001299,2]
[342082207,1731420632411,-5551.74385648,0.0001299,2]
[342082210,1731420637626,-500.0,0.00012973,2]
[342082212,1731420637636,-1139.5,0.0001299,2]
[342082214,1731420637647,-42910.71731644,0.0001299,2]
[342082215,1731420637802,-155388.16649729,0.0001299,2]
[342082216,1731420637845,-10251.38000638,0.0001299,2]
[342082217,1731420637857,-1142784.30688896,0.0001299,2]
[342082218,1731420637866,-283.7852886,0.0001299,2]
[342082219,1731420637881,-216.4714933,0.0001299,2]
[342082220,1731420637891,-194.7319245,0.0001299,2]
[342082221,1731420637901,-711.0989738,0.0001299,2]
[342082222,1731420637911,-169.0861745,0.0001299,2]
[342082223,1731420637921,-150.93716079,0.00012999,2]
[342082224,1731420637931,-935.72507802,0.00012999,2]
[342082225,1731420637941,-1331911.34617151,0.00013,2]
[342082226,1731420637951,-19935.13257017,0.00013,2]
[342082227,1731420637960,-150.0,0.00013,2]
[342082228,1731420637970,-583.587,0.00013,2]
[342082229,1731420637980,-26622.92352864,0.00013,2]
[342082230,1731420638072,-3475.70348703,0.00013,2]
[342082231,1731420638083,-3545.80262322,0.00013,2]
[342082232,1731420638095,-2059.69324223,0.00013,2]
[342082233,1731420638107,-8578.57562107,0.00013,2]
[342082237,1731420639715,-1018.19918425,0.00013,2]
[342082238,1731420639816,-588.35623634,0.00013,2]
[342082239,1731420639991,-2029.90295862,0.00013,2]
[342082240,1731420640003,-6455.66651188,0.00013,2]
[342082241,1731420640014,-535.53824774,0.00013,2]
[342082458,1731420642654,-1658.2245676,0.00013,2]
[342082459,1731420642665,-918.6501,0.00013,2]
[342082460,1731420642747,-863.09,0.00013,2]
[342082461,1731420642759,-3282.72922895,0.00013,2]
[342082462,1731420642770,-5312.67230311,0.00013,2]
[342082463,1731420642782,-5754.37473811,0.00013,2]
[342082465,1731420642891,-39972.78769433,0.00013,2]
[342082466,1731420642907,-8657.4804,0.00013,2]
[342082467,1731420643002,-20859.34376216,0.00013,2]
[342082468,1731420643013,-4995.07535792,0.00013,2]
[342082492,1731420646038,-1609.05,0.00013,2]
[342082512,1731420646247,-608.64107126,0.00013,2]
[342082514,1731420646259,-4320.53562896,0.00013,2]
[342082517,1731420646272,-1841.72900935,0.00013,2]
[342082520,1731420646298,-22392.63194448,0.00013,2]
[342082522,1731420646310,-2866.93646414,0.00013,2]
[342082525,1731420646323,-2101.65476757,0.00013,2]
[342082527,1731420646340,-15425.99490093,0.00013,2]
[342082529,1731420646352,-519.14852251,0.00013,2]